[Event "FIDE Grand Swiss 2023"]
[Site "Villa Marina, Douglas, Isle of Man, Isle Of Man"]
[Date "2023.11.01"]
[Round "7.53"]
[White "Mendonca, Leon Luke"]
[Black "Gurel, Ediz"]
[Result "1/2-1/2"]
[TimeControl "40/90 + 30 + 30s/move"]
[WhiteFideId "35028561"]
[BlackFideId "44507356"]
[WhiteElo "2622"]
[BlackElo "2514"]

1. e4 {[%clk 01:40:48]} {[%emt 00:00:11]} e5 {[%clk 01:40:43]} {[%emt
00:00:17]} 2. Nf3 {[%clk 01:41:02]} {[%emt 00:00:16]} Nf6 {[%clk 01:41:03]}
{[%emt 00:00:10]} 3. Nxe5 {[%clk 01:40:52]} {[%emt 00:00:39]} d6 {[%clk
01:41:29]} {[%emt 00:00:06]} 4. Nf3 {[%clk 01:41:15]} {[%emt 00:00:06]} Nxe4
{[%clk 01:41:54]} {[%emt 00:00:06]} 5. d4 {[%clk 01:41:30]} {[%emt 00:00:14]}
d5 {[%clk 01:42:18]} {[%emt 00:00:06]} 6. Bd3 {[%clk 01:41:51]} {[%emt
00:00:10]} Bd6 {[%clk 01:42:34]} {[%emt 00:00:14]} 7. O-O {[%clk 01:42:04]}
{[%emt 00:00:16]} O-O {[%clk 01:42:58]} {[%emt 00:00:07]} 8. c4 {[%clk
01:42:23]} {[%emt 00:00:10]} c6 {[%clk 01:43:19]} {[%emt 00:00:10]} 9. Qc2
{[%clk 01:33:52]} {[%emt 00:09:00]} h6 {[%clk 01:42:42]} {[%emt 00:01:07]} 10.
c5 {[%clk 01:34:05]} {[%emt 00:00:17]} Bc7 {[%clk 01:41:01]} {[%emt 00:02:11]}
11. Nc3 {[%clk 01:34:25]} {[%emt 00:00:10]} f5 {[%clk 01:36:59]} {[%emt
00:04:32]} 12. a3 {[%clk 01:32:54]} {[%emt 00:02:01]} Be6 {[%clk 01:33:21]}
{[%emt 00:04:08]} 13. Ne2 {[%clk 01:32:24]} {[%emt 00:01:00]} g5 {[%clk
01:23:42]} {[%emt 00:10:10]} 14. Ne1 {[%clk 01:21:42]} {[%emt 00:11:11]} Nd7
{[%clk 01:18:21]} {[%emt 00:05:51]} 15. f3 {[%clk 01:19:49]} {[%emt 00:02:23]}
Qe8 {[%clk 01:15:47]} {[%emt 00:03:05]} 16. g3 {[%clk 01:12:10]} {[%emt
00:08:08]} Qh5 {[%clk 01:11:43]} {[%emt 00:04:34]} 17. Ng2 {[%emt 00:10:10]}
Rae8 {[%clk 01:04:53]} 18. Be3 {[%clk 01:04:05]} {[%emt 00:06:15]} Ndf6 {[%clk
00:59:14]} {[%emt 00:06:09]} 19. Rae1 {[%clk 00:56:40]} {[%emt 00:07:55]} Kh8
{[%clk 00:54:58]} {[%emt 00:04:47]} 20. Bc1 {[%clk 00:42:57]} {[%emt 00:14:13]}
Rf7 {[%clk 00:47:54]} {[%emt 00:07:34]} 21. Qd1 {[%clk 00:27:26]} {[%emt
00:16:01]} Bc8 {[%clk 00:35:52]} {[%emt 00:12:32]} 22. Bc2 {[%clk 00:25:43]}
{[%emt 00:02:12]} Ref8 {[%clk 00:33:59]} {[%emt 00:02:23]} 23. Qd3 {[%clk
00:17:31]} {[%emt 00:08:43]} Kg8 {[%clk 00:30:46]} {[%emt 00:03:43]} 24. Bd1
{[%clk 00:17:23]} {[%emt 00:00:37]} Qg6 {[%clk 00:21:49]} {[%emt 00:09:27]} 25.
Qc2 {[%clk 00:16:18]} {[%emt 00:01:36]} f4 {[%clk 00:17:33]} {[%emt 00:04:46]}
26. gxf4 {[%clk 00:12:49]} {[%emt 00:03:58]} Bh3 {[%clk 00:14:32]} {[%emt
00:03:31]} 27. fxe4 {[%clk 00:03:22]} {[%emt 00:09:57]} Nxe4 {[%clk 00:14:32]}
{[%emt 00:00:30]} 28. Ng3 {[%clk 00:03:16]} {[%emt 00:00:37]} gxf4 {[%clk
00:13:12]} {[%emt 00:01:50]} 29. Nxe4 {[%clk 00:02:54]} {[%emt 00:00:52]} f3
{[%clk 00:08:57]} {[%emt 00:04:44]} 30. Nf6+ {[%clk 00:01:18]} {[%emt
00:02:07]} Rxf6 {[%clk 00:06:58]} {[%emt 00:02:29]} 31. Qxg6+ {[%clk 00:01:46]}
{[%emt 00:00:01]} Rxg6 {[%clk 00:07:23]} {[%emt 00:00:06]} 32. Bxf3 {[%clk
00:02:09]} {[%emt 00:00:06]} Rxf3 {[%clk 00:07:41]} {[%emt 00:00:12]} 33. Re8+
{[%clk 00:02:34]} {[%emt 00:00:06]} Kh7 {[%clk 00:02:06]} {[%emt 00:06:04]} 34.
Re7+ {[%clk 00:02:53]} {[%emt 00:00:11]} Kg8 {[%clk 00:02:27]} {[%emt
00:00:10]} 35. Rxf3 {[%clk 00:02:56]} {[%emt 00:00:27]} Rxg2+ {[%clk 00:02:36]}
{[%emt 00:00:21]} 36. Kf1 {[%clk 00:02:45]} {[%emt 00:00:41]} Rg7+ {[%clk
00:02:25]} {[%emt 00:00:40]} 37. Rxh3 {[%clk 00:03:11]} {[%emt 00:00:04]} Rxe7
{[%clk 00:02:53]} {[%emt 00:00:03]} 38. Bxh6 {[%clk 00:02:49]} {[%emt
00:00:52]} Re4 {[%clk 00:03:04]} {[%emt 00:00:18]} 39. Rb3 {[%clk 00:00:33]}
{[%emt 00:02:46]} b6 {[%clk 00:02:40]} {[%emt 00:00:55]} 40. cxb6 {[%clk
00:00:34]} {[%emt 00:00:28]} Bxb6 {[%clk 00:02:01]} {[%emt 00:01:09]} 41. Be3
{[%clk 00:46:43]} {[%emt 00:04:20]} Bxd4 {[%clk 00:49:32]} {[%emt 00:03:00]} 42.
Bxd4 {[%clk 00:47:08]} {[%emt 00:00:05]} Rxd4 {[%clk 00:50:00]} {[%emt
00:00:03]} 43. Rc3 {[%clk 00:46:24]} {[%emt 00:01:14]} Rd1+ {[%clk 00:46:28]}
{[%emt 00:04:02]} 44. Ke2 {[%clk 00:45:31]} {[%emt 00:01:23]} Rh1 {[%clk
00:46:50]} {[%emt 00:00:08]} 45. Rxc6 {[%clk 00:44:36]} {[%emt 00:01:25]} Rxh2+
{[%clk 00:47:16]} {[%emt 00:00:04]} 46. Kd3 {[%clk 00:45:00]} {[%emt 00:00:06]}
Rxb2 {[%clk 00:47:42]} {[%emt 00:00:04]} 47. Ra6 {[%clk 00:45:05]} {[%emt
00:00:25]} Rb7 {[%clk 00:47:38]} {[%emt 00:00:34]} 48. Kd4 {[%clk 00:45:30]}
{[%emt 00:00:04]} Rd7 {[%clk 00:48:05]} {[%emt 00:00:04]} 49. Ra5 {[%clk
00:45:57]} {[%emt 00:00:03]} Kf7 {[%clk 00:48:31]} {[%emt 00:00:03]} 50. Rxd5
{[%clk 00:46:23]} {[%emt 00:00:04]} Ke6 {[%clk 00:48:59]} {[%emt 00:00:02]} 51.
Rxd7 {[%clk 00:46:48]} {[%emt 00:00:04]} Kxd7 {[%clk 00:49:28]} {[%emt
00:00:02]} 1/2-1/2